Cogmind - Beta 14 @@@ ROGUE MODE // 2025.03.04 @ 18:06:54 Player: Komeiji O. Result: Destroyed by H-88 Terminator with KE Penetrator Performance ------------- Evolutions (8) 4000 Regions Visited (18) 3600 Robots Destroyed (245) 1225 Value Destroyed (9644) 9644 Prototype IDs (27) 540 Alien Tech Used (1) 200 Bonus (2239) 2239 TOTAL SCORE: 21448 Bonus ------- High Alert Combat Kills 1106 Follower Combat Kills 1007 Met Data Miner 300 Friendly Fire -174 Cogmind --------- Core Integrity 0/1450 Matter 11/300 Energy 100/100 System Corruption 4% Temperature Cool (0) Movement Core (50) Location -2/Research Parts ------- > --- POWER (3) -------- (None) > --- PROPULSION (7) --- (None) > --- UTILITY (6) ------ Enhanced Optical Array Advanced Signal Interpreter System Shield > --- WEAPON (8) ------- (None) > --- INVENTORY (5) ---- Micro Antimatter Reactor Centrium Leg Improved Hacking Suite Nova Cannon Mini Smartbomb Launcher Peak State ------------ > --- POWER ------------ Micro Antimatter Reactor > --- PROPULSION ------- Flying Cooled-XBT Exoskeleton Xenon Bombardment Thruster Xenon Bombardment Thruster Nuclear Pulse Array Field Propulsion Array > --- UTILITY ---------- Scrap Engine Enhanced Optical Array Advanced Signal Interpreter Advanced Hacking Suite System Shield > --- WEAPON ----------- Nova Cannon Enhanced Nova Cannon Railgun Railgun Railgun > --- INVENTORY -------- Myomer Leg Biometal Leg Matter Compressor Mini Smartbomb Launcher [Rating: 125] Favorites ----------- Power Constructs Engine Improved Deuterium Engine Power Core Micro Nuclear Core Reactor Constructs Propulsion Constructs Treads Light Treads Leg Flexi-carbon Leg Wheel Wheel Hover Unit Antigrav System Flight Unit Constructs Utility Armored Scrap Engine Device Armored Scrap Engine Storage Large Storage Unit Processor Enhanced Optical Array Hackware Improved Hacking Suite Protection Improved Light Armor Plating Weapon Constructs Energy Gun Tesla Rifle Energy Cannon Heavy Particle Cannon Ballistic Gun Constructs Ballistic Cannon Constructs Launcher Mini Smartbomb Launcher Special Weapon Improved Remote Datajack Impact Weapon Powered Hammer Slashing Weapon Phasing Sabre Special Melee Weapon Improved Datajack Build | -11 -10 -10 -9 -7 -7 -7 -7 -6 -6 -6 -5 -5 -5 -4 -4 -4 -3 -2 ------- Run | Yrd Mat Sub Rec Fac Low Low Dat Pro Fac Ext Fac Upp Upp Fac Upp Upp Res Res Slots Evolved 16 | . . . . 6 . . . . 2 . 2 . . 2 . . 2 2 Power 2 | . . . . 1 . . . . . . . . . . . . 1 . Propulsion 4 | . . . . 2 . . . . . . . . . 1 . . 1 . Utility 4 | . . . . 2 . . . . 1 . 1 . . . . . . . Weapon 6 | . . . . 1 . . . . 1 . 1 . . 1 . . . 2 Parts Attached 274 | 7 12 9 12 33 9 5 . 23 20 23 58 8 . 18 4 5 17 11 Power 18 | 1 2 1 1 1 . . . 2 1 . 2 . . 2 . 1 3 1 Engine 6 | 1 2 1 1 . . . . 1 . . . . . . . . . . Core 7 | . . . . 1 . . . 1 1 . 2 . . . . 1 1 . Reactor 5 | . . . . . . . . . . . . . . 2 . . 2 1 Propulsion 70 | 2 1 3 3 9 2 . . 8 7 5 14 1 . 6 . 1 6 2 Treads 20 | 1 1 1 3 5 2 . . 5 1 1 . . . . . . . . Leg 16 | . . . . . . . . 1 2 4 7 . . . . . . 2 Wheel 17 | 1 . 2 . 1 . . . . 4 . 4 1 . 4 . . . . Hover 3 | . . . . . . . . . . . 3 . . . . . . . Flight 14 | . . . . 3 . . . 2 . . . . . 2 . 1 6 . Utility 63 | 2 . 2 3 12 1 1 . 3 8 4 15 2 . 4 2 . 3 1 Device 27 | 1 . . 2 3 1 1 . . 4 2 9 2 . 1 1 . . . Storage 6 | 1 . 1 . 1 . . . 1 . . . . . 1 . . . 1 Processor 4 | . . . . . . . . . 1 . 1 . . . 1 . 1 . Hackware 4 | . . . . . . . . . . . 2 . . . . . 2 . Protection 22 | . . 1 1 8 . . . 2 3 2 3 . . 2 . . . . Artifact . | . . . . . . . . . . . . . . . . . . . Weapon 123 | 2 9 3 5 11 6 4 . 10 4 14 27 5 . 6 2 3 5 7 Energy Gun 26 | 1 3 . 1 2 1 . . 1 . . 12 1 . 3 . . 1 . Energy Cannon 19 | . . . . . . . . . . 6 6 1 . 2 . . 2 2 Ballistic Gun 23 | 1 3 1 4 4 . 1 . 3 1 . 1 . . . . . . 4 Ballistic Cannon 5 | . . 1 . . . . . 2 2 . . . . . . . . . Launcher 24 | . . . . 1 2 2 . 1 . 3 5 1 . 1 2 3 2 1 Special Weapon 5 | . 3 1 . . . . . . . . . 1 . . . . . . Impact Weapon 9 | . . . . 4 3 1 . . 1 . . . . . . . . . Slashing Weapon 5 | . . . . . . . . 1 . . 3 1 . . . . . . Piercing Weapon . | . . . . . . . . . . . . . . . . . . . Special Melee Weapon 7 | . . . . . . . . 2 . 5 . . . . . . . . Unidentified Prototypes 8 | . . . 1 1 . 1 . . 1 . 2 . . 1 . . 1 . Corrupted Parts 1 | . . . . . . . . . . . 1 . . . . . . . System Corruption 1 | . . . . . . . . . . . 1 . . . . . . . Parts Lost 106 | . 2 2 7 2 . . . 10 2 2 35 4 . 17 1 . 8 14 Power 17 | . 1 1 . . . . . 3 . 1 5 . . 3 . . 2 1 Propulsion 40 | . . 1 2 1 . . . 5 2 . 13 1 . 5 . . 3 7 Utility 18 | . . . 1 . . . . 1 . 1 6 1 . 3 1 . 2 2 Weapon 31 | . 1 . 4 1 . . . 1 . . 11 2 . 6 . . 1 4 Highest Loss Streak 17 | . 1 2 6 1 . . . 9 1 1 14 4 . 17 1 . 5 14 To Critical Strikes 4 | . . . . . . . . 1 . . 2 . . . . . . 1 Average Slot Usage (%) 73 | . 96 96 73 72 76 75 71 63 74 80 78 47 50 62 24 27 42 38 Engine 4 | . 10 13 7 6 7 7 7 2 6 . . . . . . . . . Core 4 | . . . . 5 7 7 7 5 5 11 9 . . . . . . . Treads 10 | . 17 25 19 14 9 22 21 16 7 2 1 . . . . . . . Leg 4 | . . . . 1 . . . 2 4 20 12 . . . . . . . Wheel 2 | . 10 2 5 . . . . . 6 1 3 3 . 10 . . . . Flight 2 | . . . . 3 13 . . 2 3 . . . . . 5 5 15 10 Device 10 | . 14 11 8 7 8 14 14 10 12 12 11 11 16 8 10 10 5 2 Storage 6 | . 14 13 5 7 7 7 7 7 6 6 5 4 . 1 . . . . Processor 1 | . . . . . . . . . 1 . 5 5 5 5 6 10 6 8 Protection 3 | . . . . 6 6 . . 1 4 5 2 . . 5 . . . . Energy Gun 4 | . 10 . 8 4 . . . . . 6 6 9 5 5 . . 2 . Energy Cannon 2 | . . . . 3 . . . 4 . 5 6 . . 1 . . 1 4 Ballistic Gun 3 | . 15 15 10 2 . . . 3 1 . . . . 1 . . . 3 Ballistic Cannon 3 | . . 6 4 1 6 7 7 3 9 5 2 . . . . . . . Peak Build Rating 125 | 7 8 13 29 65 65 66 66 68 83 93 111 72 65 96 43 43 104 125 Average Rating 58 | 5 7 8 21 53 63 65 66 58 72 90 92 58 65 77 36 38 74 71 On Entrance 50 | . 7 7 13 28 64 65 66 66 65 83 88 54 72 65 32 37 42 96 Naked Turns . | . . . . . . . . . . . . . . . . . . . Heaviest Build 96 | 13 15 92 96 44 46 44 42 63 68 81 90 35 20 75 2 7 38 52 Greatest Support 108 | 20 40 40 42 57 73 73 73 93 52 108 105 12 12 40 4 8 47 53 Greatest Overweight (x) 10 | . . 4 4 2 2 . . 10 6 1 7 10 1 7 . . 1 7 Average Overweight (x) . | . . . 1 . . . . . 2 . 1 3 1 1 . . . . Largest Inventory Capacity 25 | 8 8 25 25 15 15 15 15 15 15 15 15 15 5 10 5 5 5 5 Average Capacity 13 | 7 8 10 12 14 15 15 15 15 15 15 15 13 5 6 5 5 5 5 Most Carried 25 | 8 8 20 25 15 15 15 15 15 15 15 15 11 5 7 4 4 5 5 Average Carried 11 | 4 7 9 12 12 14 15 15 13 14 14 13 7 5 5 3 3 4 4 Final Capacity 25 | 8 8 25 5 15 15 15 15 15 15 15 15 5 5 5 5 5 5 5 Final Carried 20 | 7 8 20 5 15 15 15 15 15 15 13 8 5 5 5 4 4 5 5 Scrap Engine Consumption 190 | . . . 16 43 6 1 . 24 28 30 30 1 1 5 . . 5 . Constructs Created 15 | . . . 2 1 . . . 2 2 1 4 . . 2 . . 1 . Constructs Modified 67 | . . . 2 18 6 1 . 8 10 12 9 . . 1 . . . . Class Distribution -------------------- 36% | Construct 24% | Mutant 8% | Tank 7% | Scavenger-Tank 5% | Scavenger-Skirmisher 3% | Skirmisher 3% | Gunner Dominant Class ---------------- Mutant | -10/Materials Mutant | -10/Subcaves Construct | -9/Recycling Construct | -7/Factory Construct | -7/Lower Caves Construct | -7/Lower Caves Construct | -7/Data Miner Construct | -6/Proximity Caves Scavenger-Tank | -6/Factory Construct | -6/Extension Scavenger-Skirmisher | -5/Factory Skirmisher | -5/Upper Caves Skirmisher | -5/Upper Caves Tank | -4/Factory Scout | -4/Upper Caves Scout | -4/Upper Caves Hacker-Mutant | -3/Research Hacker-Sprinter | -2/Research Resources | -11 -10 -10 -9 -7 -7 -7 -7 -6 -6 -6 -5 -5 -5 -4 -4 -4 -3 -2 ----------- Run | Yrd Mat Sub Rec Fac Low Low Dat Pro Fac Ext Fac Upp Upp Fac Upp Upp Res Res Matter Collected 6694 | 287 303 239 515 717 317 82 . 870 839 422 1257 253 . 45 193 136 36 183 Remotely . | . . . . . . . . . . . . . . . . . . . Salvage Created 9819 | 157 449 93 291 935 383 201 . 1509 1518 755 2347 111 . 324 28 137 58 523 Parts 524 | 10 32 8 18 45 18 10 . 62 73 39 138 3 . 20 5 6 7 30 Haulers Intercepted 3 | . . . . 2 . . . . . . 1 . . . . . . . Recyclers Shooed 13 | . . . . 1 . . . . 7 1 3 . . . . . . 1 Parts Field Recycled . | . . . . . . . . . . . . . . . . . . . Retrieved Matter . | . . . . . . . . . . . . . . . . . . . Parts Self-Destructed 89 | . . 15 . . 15 8 . 40 . . . 2 . . 5 4 . . Prevented 11 | . . . . . . 5 . 6 . . . . . . . . . . Kills | -11 -10 -10 -9 -7 -7 -7 -7 -6 -6 -6 -5 -5 -5 -4 -4 -4 -3 -2 ------- Run | Yrd Mat Sub Rec Fac Low Low Dat Pro Fac Ext Fac Upp Upp Fac Upp Upp Res Res Combat Hostiles Destroyed 189 | . 10 4 5 21 15 4 . 18 15 14 55 5 . 7 3 5 3 5 Guns 48 | . 10 3 4 10 . . . 4 . 1 10 . . 2 . . . 4 Cannons 58 | . . 1 1 8 4 1 . 8 15 6 13 . . . . . . 1 AOE 77 | . . . . 3 11 3 . 5 . 6 29 5 . 4 3 5 3 . Classes Destroyed 21 | 2 7 2 2 3 . . . 2 1 1 1 . . . . . . . Worker 13 | . 1 . . 1 . . . . 3 . 5 . . 2 . . 1 . Builder 12 | . 1 . . . . . . 1 5 . 4 . . . . . . 1 Tunneler 5 | 3 1 . . . . . . . . . . . . 1 . . . . Hauler 3 | . . . . 2 . . . . . . 1 . . . . . . . Recycler 11 | 1 . . . 2 . . . 2 5 . . . . . . . . 1 Mechanic 3 | . 1 . . 1 . . . . 1 . . . . . . . . . Operator 2 | . 1 . . . . . . . . . 1 . . . . . . . Turret 2 | . . 2 . . . . . . . . . . . . . . . . Watcher 6 | . 2 . . 1 . . . 2 . . 1 . . . . . . . Swarmer 57 | . 3 2 . 7 7 . . 4 . 1 21 . . 1 3 5 3 . Grunt 62 | . 7 . . 3 8 3 . 5 5 10 11 5 . 5 . . . . Brawler 3 | . . . . . . . . 2 . 1 . . . . . . . . Duelist 2 | . . . . . . . . . 1 . 1 . . . . . . . Protector 1 | . . . . . . . . 1 . . . . . . . . . . Sentry 15 | . . . 2 4 . . . 4 2 1 2 . . . . . . . Specialist 1 | . . . . . . . . . . . 1 . . . . . . . Hunter 22 | . . . . 1 . . . 2 6 . 10 . . 1 . . . 2 Programmer 20 | . . . . 6 . 1 . . 1 . 9 . . . . . . 3 Behemoth 1 | . . . . . . . . . . 1 . . . . . . . . Subdweller 2 | . . 2 . . . . . . . . . . . . . . . . Scrapper 3 | . . . 3 . . . . . . . . . . . . . . . Packrat 1 | . . . . . . . . . . . . . . . . 1 . . Best Kill Streak 20 | 3 6 2 3 4 8 4 . 7 8 4 20 4 . 4 3 5 4 5 Combat Bots Only 17 | . 3 2 3 4 8 4 . 7 3 4 17 4 . 4 3 5 3 4 Max Kills in Single Turn 6 | 1 4 1 1 3 3 2 . 2 2 2 6 3 . 2 3 5 3 1 Gunslinging 1 | . 1 . . . . . . . . . . . . . . . . . Exploded 6 | . . . . 3 3 2 . 2 . 2 6 3 . 2 3 5 2 . Melee . | . . . . . . . . . . . . . . . . . . . Uniques/NPCs Destroyed . | . . . . . . . . . . . . . . . . . . . Combat | -11 -10 -10 -9 -7 -7 -7 -7 -6 -6 -6 -5 -5 -5 -4 -4 -4 -3 -2 -------- Run | Yrd Mat Sub Rec Fac Low Low Dat Pro Fac Ext Fac Upp Upp Fac Upp Upp Res Res Hostile Shots Fired 1744 | . 39 72 29 177 51 6 . 259 165 67 396 19 9 170 21 . 85 179 Missed 567 | . 11 25 2 68 14 3 . 66 53 29 116 9 3 58 12 . 40 58 Damage Taken 20615 | . 507 510 574 1548 528 49 . 2235 1714 755 5615 277 114 2275 151 . 878 2885 Core 4166 | . 58 74 76 154 60 14 . 136 160 73 807 66 36 712 84 . 197 1459 Absorbed by Shields 380 | . . . . . . . . . . 67 111 . . . . . . 202 Regen/Repaired (Parts) 2502 | . . . 100 376 182 49 . 597 664 470 64 . . . . . . . Core Remaining (%) 51 | 100 . . 16 . . . . 48 . 72 . . 9 . . 30 84 . Volleys Fired 537 | 9 47 21 14 77 23 6 . 74 67 34 97 9 . 18 2 2 7 30 Largest 4 | 2 2 2 2 3 2 2 . 2 3 3 4 2 . 2 1 1 1 3 Hottest 356 | 60 120 100 80 201 162 112 . 162 181 252 356 153 . 169 80 80 113 233 Shots Fired 962 | 14 81 39 28 127 26 8 . 138 135 61 199 12 . 29 2 2 7 54 Gun 457 | 14 70 18 26 75 3 2 . 56 15 10 106 5 . 19 . . 2 36 Cannon 430 | . . 19 2 50 15 2 . 78 120 42 77 . . 6 . . 1 18 Launcher 62 | . . . . 2 8 4 . 4 . 9 16 7 . 4 2 2 4 . Special 13 | . 11 2 . . . . . . . . . . . . . . . . Kinetic 509 | 9 39 37 26 53 15 4 . 96 122 23 41 . . 8 . . . 36 Thermal 280 | . 27 2 2 72 3 . . 38 13 29 59 5 . 11 . . 1 18 Explosive 47 | . . . . 2 8 . . . . 3 16 7 . 4 2 1 4 . Electromagnetic 126 | 5 15 . . . . 4 . 4 . 6 83 . . 6 . 1 2 . Robot Hit Streak 19 | 2 14 7 10 15 6 3 . 19 10 7 15 3 . 11 7 8 13 15 Robot Miss Streak 9 | 2 4 9 2 6 2 1 . 3 3 4 4 2 . 3 . . . 5 Penetration Max 1 | . . . . . . . . 1 . . 1 . . 1 . . . 1 Secondary Targets 5 | . 1 . 1 . . . . . . . . . . 1 . . . 2 Max Gunslinging Chain 1 | . 1 . 1 . . . . . . . . . . 1 . . . 1 Shots Hit Robots 611 | 7 43 18 22 86 12 3 . 120 91 52 97 1 . 27 1 1 5 25 Core Hits 452 | 4 25 9 12 69 27 8 . 56 39 36 106 13 . 19 4 6 8 11 Critical Kills 6 | . . . . . . . . 4 . . . . . . . . . 2 Critical Parts Destroyed 9 | . . . . . . . . 6 1 . 1 . . 1 . . . . Critical Strikes 25 | . . . . . 2 . . 10 8 . 1 . . 2 . . . 2 Meltdown 1 | . . . . . . . . . . . . . . . . . . 1 Destroy 14 | . . . . . . . . 10 1 . 1 . . 1 . . . 1 Blast 9 | . . . . . 2 . . . 7 . . . . . . . . . Sever 1 | . . . . . . . . . . . . . . 1 . . . . Melee Attacks 63 | . . . . 7 . 5 . 21 . 15 11 . . 4 . . . . Impact 12 | . . . . 7 . 5 . . . . . . . . . . . . Slashing 15 | . . . . . . . . . . . 11 . . 4 . . . . Piercing . | . . . . . . . . . . . . . . . . . . . Sneak Attacks 39 | . . . . . . . . 21 . 15 1 . . 2 . . . . Combat Hostiles . | . . . . . . . . . . . . . . . . . . . Follow-up Attacks . | . . . . . . . . . . . . . . . . . . . Damage Inflicted 27725 | 116 1068 377 424 2538 1567 313 . 3170 4146 2587 6384 901 . 1706 423 365 613 1027 Guns 6326 | 116 596 190 380 1318 53 26 . 807 265 266 1158 26 . 427 . . 47 651 Cannons 10950 | . . 187 38 916 685 68 . 1913 3881 1318 1423 . . 116 . . 37 368 Explosions 9988 | . 457 . . 254 829 219 . 450 . 966 3652 875 . 969 423 365 529 . Melee 295 | . . . . . . . . . . . 101 . . 194 . . . . Ramming 166 | . 15 . 6 50 . . . . . 37 50 . . . . . . 8 Kinetic 10170 | 47 347 377 396 983 685 94 . 1469 3455 1083 397 . . 186 . . . 651 Thermal 6296 | . 570 . 22 1251 53 . . 1403 691 501 878 26 . 496 . . 37 368 Explosive 7799 | . . . . 254 829 . . . . 518 3328 875 . 714 423 329 529 . Electromagnetic 2999 | 69 136 . . . . 219 . 298 . 448 1630 . . 116 . 36 47 . Impact . | . . . . . . . . . . . . . . . . . . . Slashing 295 | . . . . . . . . . . . 101 . . 194 . . . . Piercing . | . . . . . . . . . . . . . . . . . . . Highest Corruption 21 | . . . . 2 2 2 2 2 5 5 21 21 21 . . . . 4 Average Corruption 5 | . . . . 1 2 2 2 2 5 5 13 21 21 . . . . 3 Corruption Purged . | . . . . . . . . . . . . . . . . . . . Corruption Blocked . | . . . . . . . . . . . . . . . . . . . Effects 189 | . . . . 22 8 12 2 15 12 38 56 18 2 . . . . 4 Message Errors 40 | . . . . 1 2 2 1 5 4 8 13 2 . . . . . 2 Matter Fused 40 | . . . . 6 2 3 1 1 . 9 13 4 1 . . . . . Heat Flow Errors 22 | . . . . 5 3 1 . 2 1 2 6 1 . . . . . 1 Energy Discharges 20 | . . . . 5 . 2 . 3 1 3 4 2 . . . . . . Parts Rejected 2 | . . . . . . 1 . . . . . 1 . . . . . . Data Loss (minor) 32 | . . . . 1 . 3 . 2 5 7 8 5 . . . . . 1 Data Loss (major) 7 | . . . . 1 1 . . . 1 2 2 . . . . . . . Misfires 11 | . . . . . . . . 2 . 4 3 2 . . . . . . Alerts 5 | . . . . 2 . . . . . 1 1 1 . . . . . . Misdirections 2 | . . . . . . . . . . . 1 . 1 . . . . . Weapon Failures 8 | . . . . 1 . . . . . 2 5 . . . . . . . Overload Shots . | . . . . . . . . . . . . . . . . . . . Overflow Damage 1154 | . 164 11 . 99 106 . . 17 317 22 170 14 . 107 55 . 32 40 Projectiles 534 | . . 11 . 53 78 . . 17 317 15 3 . . . . . . 40 Explosions 570 | . 164 . . 46 28 . . . . . 167 14 . 64 55 . 32 . Melee 50 | . . . . . . . . . . 7 . . . 43 . . . . Knockbacks 55 | . . 3 . 7 6 . . 9 22 5 3 . . . . . . . Impact 1 | . . . . . . . . . . 1 . . . . . . . . Kinetic 50 | . . 3 . 7 6 . . 8 19 4 3 . . . . . . . Secondary 4 | . . . . . . . . 1 3 . . . . . . . . . Self-Inflicted Damage 1071 | . 179 . 1 340 . . . . . 25 367 34 . 122 . . . 3 Shots 25 | . 3 . . 5 . . . . . 1 11 2 . 3 . . . . Rammed 14 | . 3 . 2 7 . . . . . . . . . . . . . 2 Targets Rammed 22 | . 3 . 2 8 . . . . . 1 5 . . . . . . 3 Kicked 7 | . . . . . . . . . . 1 5 . . . . . . 1 Crushed 1 | . . . . 1 . . . . . . . . . . . . . . Highest Temperature 396 | . 107 1 196 390 378 131 . 227 364 364 396 166 . 339 . . 87 383 Average Temperature 92 | . 37 1 107 80 117 45 . 55 112 119 97 98 . 134 . . 29 125 Received Heat Transfer 2764 | . 174 114 372 222 180 18 . 318 267 235 358 90 . 305 . . 93 18 Effects 6 | . . . . 1 . . . . 1 . . . . 4 . . . . Interference 3 | . . . . . . . . . . . . . . 3 . . . . Short Circuit 1 | . . . . . . . . . 1 . . . . . . . . . Damage (minor) 2 | . . . . 1 . . . . . . . . . 1 . . . . Siege Activations . | . . . . . . . . . . . . . . . . . . . Robots Corrupted 6 | . . . . . . . . 1 . . 4 . . 1 . . . . Combat Hostiles 5 | . . . . . . . . 1 . . 3 . . 1 . . . . Parts Fried 16 | . . . . . . . . 2 . 2 12 . . . . . . . Impact Corruptions 1 | . . . . . . . . . . 1 . . . . . . . . Robots Melted 2 | . . . . . . . . . . 1 . . . . . . . 1 Combat Hostiles 1 | . . . . . . . . . . 1 . . . . . . . . Parts Melted 11 | . 1 . 1 5 . . . 2 . . . . . . . . . 2 Heat Transferred 6844 | . 683 . 25 1787 125 . . 1192 407 678 970 37 . 570 . . 37 333 Parts Sabotaged 9 | . . . . . . . . . . . 9 . . . . . . . Parts Stolen . | . . . . . . . . . . . . . . . . . . . Parts Stripped . | . . . . . . . . . . . . . . . . . . . Power Chain Reactions 8 | . 1 . . . . . . 2 1 . 4 . . . . . . . Alert | -11 -10 -10 -9 -7 -7 -7 -7 -6 -6 -6 -5 -5 -5 -4 -4 -4 -3 -2 ------- Run | Yrd Mat Sub Rec Fac Low Low Dat Pro Fac Ext Fac Upp Upp Fac Upp Upp Res Res Peak Influence 1219 | 20 398 . 93 462 . . . . 365 763 1219 . . 438 . . 559 492 Initial 392 | . 13 . 74 . . . . . . 165 301 . . 392 . . 259 297 Average 280 | 7 151 . 25 156 . . . . 166 545 544 . . 385 . . 390 392 Maximum Alert Level 4 | . 1 . . 2 . . . . 1 3 4 . . 2 . . 2 2 Low Security (%) 46 | 100 57 . 100 58 . . . . 65 8 22 . . . . . . . Level 1 29 | . 42 . . 36 . . . . 34 15 27 . . 33 . . 61 55 Level 2 13 | . . . . 5 . . . . . 41 10 . . 66 . . 38 44 Level 3 8 | . . . . . . . . . . 34 27 . . . . . . . Level 4 2 | . . . . . . . . . . . 11 . . . . . . . Level 5 . | . . . . . . . . . . . . . . . . . . . High Security . | . . . . . . . . . . . . . . . . . . . Max Security . | . . . . . . . . . . . . . . . . . . . Squads Dispatched 41 | . 3 . . 8 . . . 1 4 2 12 . . 4 . . 2 5 Investigation 4 | . 1 . . 1 . . . 1 . . . . . 1 . . . . Extermination 10 | . . . . 5 . . . . 1 . 3 . . . . . . 1 Reinforcement 20 | . 2 . . 2 . . . . 3 1 6 . . 2 . . 1 3 Assault 4 | . . . . . . . . . . 1 3 . . . . . . . Garrison 3 | . . . . . . . . . . . . . . 1 . . 1 1 Intercept . | . . . . . . . . . . . . . . . . . . . Searches Triggered . | . . . . . . . . . . . . . . . . . . . Data Miner Redirects 2 | . . . . . . . . . 1 . 1 . . . . . . . Construction Impeded 5 | . . . . . . . . . 2 . 2 . . . . . . 1 Haulers Reinforced 3 | . . . . . . . . . . . 1 . . . . . 1 1 Active Scanning Responses . | . . . . . . . . . . . . . . . . . . . Cargo Convoy Interrupts 2 | . . . . . . . . . 1 . 1 . . . . . . . Stealth | -11 -10 -10 -9 -7 -7 -7 -7 -6 -6 -6 -5 -5 -5 -4 -4 -4 -3 -2 --------- Run | Yrd Mat Sub Rec Fac Low Low Dat Pro Fac Ext Fac Upp Upp Fac Upp Upp Res Res Distress Signals 12 | . 3 . 1 . . . . 1 . 2 2 . . . . . 1 2 Communications Jammed . | . . . . . . . . . . . . . . . . . . . Distress Signals . | . . . . . . . . . . . . . . . . . . . Times Spotted 337 | . 21 8 5 34 18 5 . 26 28 40 80 5 2 15 5 . 15 30 Peak Tracking Total 22 | . 6 4 4 6 4 4 . 9 3 6 22 5 2 7 4 . 6 13 Tactical Retreats 22 | . 2 2 . . . . . 1 1 5 3 . . . 2 . 4 2 Traps | -11 -10 -10 -9 -7 -7 -7 -7 -6 -6 -6 -5 -5 -5 -4 -4 -4 -3 -2 ------- Run | Yrd Mat Sub Rec Fac Low Low Dat Pro Fac Ext Fac Upp Upp Fac Upp Upp Res Res Traps Triggered 14 | . 1 . . . . . . 1 4 3 . 1 . . . . 1 3 Indirectly . | . . . . . . . . . . . . . . . . . . . Trap Hack Attempts . | . . . . . . . . . . . . . . . . . . . Triggered . | . . . . . . . . . . . . . . . . . . . Disarmed . | . . . . . . . . . . . . . . . . . . . Reprogrammed 6 | . . . . 6 . . . . . . . . . . . . . . Reused 2 | . . . . 2 . . . . . . . . . . . . . . Traps Extracted . | . . . . . . . . . . . . . . . . . . . Installed . | . . . . . . . . . . . . . . . . . . . Triggered 7 | . . . . 2 . 2 . . 2 1 . . . . . . . . Machines | -11 -10 -10 -9 -7 -7 -7 -7 -6 -6 -6 -5 -5 -5 -4 -4 -4 -3 -2 ---------- Run | Yrd Mat Sub Rec Fac Low Low Dat Pro Fac Ext Fac Upp Upp Fac Upp Upp Res Res Machines Disabled 28 | . 3 1 2 9 . . . 3 2 1 3 . . 3 . . . 1 Max in Single Turn 3 | . 3 1 1 3 . . . 1 1 . 1 . . 3 . . . 1 Garrison Access 2 | . . . . 1 . . . . . . 1 . . . . . . . Energy Cycler 2 | . . . . . . . . . . 2 . . . . . . . . Machines Repaired . | . . . . . . . . . . . . . . . . . . . Machines Dismantled . | . . . . . . . . . . . . . . . . . . . Machines Sabotaged . | . . . . . . . . . . . . . . . . . . . Overloaded Fab Kills . | . . . . . . . . . . . . . . . . . . . Hacking | -11 -10 -10 -9 -7 -7 -7 -7 -6 -6 -6 -5 -5 -5 -4 -4 -4 -3 -2 --------- Run | Yrd Mat Sub Rec Fac Low Low Dat Pro Fac Ext Fac Upp Upp Fac Upp Upp Res Res Machines Accessed 48 | . 6 . 7 14 . 1 3 1 . 1 4 1 . 5 . . 4 1 Terminals 31 | . 5 . 5 10 . . . . . 1 2 . . 3 . . 4 1 Fabricators 3 | . . . . 1 . . . 1 . . . . . 1 . . . . Repair Stations . | . . . . . . . . . . . . . . . . . . . Recycling Units 4 | . 1 . 1 1 . . . . . . 1 . . . . . . . Scanalyzers 1 | . . . . 1 . . . . . . . . . . . . . . Garrison Access 3 | . . . . 1 . . . . . . 1 . . 1 . . . . Total Hacks 130 | . 18 . 18 35 . 1 18 2 . 3 10 1 . 14 . . 8 2 Successful 60 | . 8 . 8 12 . 1 18 1 . 1 3 1 . 5 . . 2 . Failed 70 | . 10 . 10 23 . . . 1 . 2 7 . . 9 . . 6 2 Catastrophic 9 | . 2 . 2 3 . . . . . . 1 . . . . . 1 . Database Lockouts . | . . . . . . . . . . . . . . . . . . . Manual 48 | . 8 . 7 15 . . . . . 3 5 . . 4 . . 4 2 Terminals 81 | . 15 . 14 26 . . . . . 3 4 . . 9 . . 8 2 Fabricators 5 | . . . . 1 . . . 2 . . . . . 2 . . . . Repair Stations . | . . . . . . . . . . . . . . . . . . . Recycling Units 10 | . 3 . 2 3 . . . . . . 2 . . . . . . . Scanalyzers 2 | . . . . 2 . . . . . . . . . . . . . . Garrison Access 10 | . . . . 3 . . . . . . 4 . . 3 . . . . Terminal Hacks 38 | . 4 . 6 3 . 1 18 . . . . 1 . 3 . . 2 . Record 4 | . . . . . . . 3 . . . . . . 1 . . . . Part Schematic 8 | . . . . . . . 8 . . . . . . . . . . . Robot Schematic 4 | . . . . . . . 4 . . . . . . . . . . . Prototype ID Bank 6 | . 1 . 2 . . . 3 . . . . . . . . . . . Open Door 2 | . . . . . . 1 . . . . . 1 . . . . . . Open DSF 1 | . . . . . . . . . . . . . . . . . 1 . Alert Level 3 | . 1 . 1 1 . . . . . . . . . . . . . . Locate Traps 4 | . 1 . . 1 . . . . . . . . . 2 . . . . Reprogram Traps 1 | . . . . 1 . . . . . . . . . . . . . . Hauler Manifests 2 | . 1 . . . . . . . . . . . . . . . 1 . Zone Layout 1 | . . . 1 . . . . . . . . . . . . . . . Release Object 2 | . . . 2 . . . . . . . . . . . . . . . Fabricator Hacks 2 | . . . . . . . . 1 . . . . . 1 . . . . Build 2 | . . . . . . . . 1 . . . . . 1 . . . . Repair Station Hacks . | . . . . . . . . . . . . . . . . . . . Recycling Unit Hacks 1 | . . . . 1 . . . . . . . . . . . . . . Retrieve Components 1 | . . . . 1 . . . . . . . . . . . . . . Scanalyzer . | . . . . . . . . . . . . . . . . . . . Garrison Access Hacks 2 | . . . . 1 . . . . . . 1 . . . . . . . Seal Access 2 | . . . . 1 . . . . . . 1 . . . . . . . Unauthorized Hacks 17 | . 4 . 2 7 . . . . . 1 2 . . 1 . . . . Terminals 15 | . 2 . 2 7 . . . . . 1 2 . . 1 . . . . Track 2 | . 1 . . 1 . . . . . . . . . . . . . . Botnet 7 | . 1 . 1 2 . . . . . 1 1 . . 1 . . . . Skim 6 | . . . 1 4 . . . . . . 1 . . . . . . . Fabricators . | . . . . . . . . . . . . . . . . . . . Repair Stations . | . . . . . . . . . . . . . . . . . . . Recycling Units 2 | . 2 . . . . . . . . . . . . . . . . . Reject 1 | . 1 . . . . . . . . . . . . . . . . . Mask 1 | . 1 . . . . . . . . . . . . . . . . . Scanalyzers . | . . . . . . . . . . . . . . . . . . . Garrison Access . | . . . . . . . . . . . . . . . . . . . Data Cores Recovered . | . . . . . . . . . . . . . . . . . . . Used . | . . . . . . . . . . . . . . . . . . . Hacking Detections 39 | . 6 . 5 14 . . . 1 . 1 3 . . 5 . . 3 1 Full Trace Events 2 | . . . . 1 . . . . . . . . . 1 . . . . Feedback Events . | . . . . . . . . . . . . . . . . . . . Feedback Blocked . | . . . . . . . . . . . . . . . . . . . Robot Schematics Acquired 4 | . . . . . . . 4 . . . . . . . . . . . Robots Built . | . . . . . . . . . . . . . . . . . . . Authchips . | . . . . . . . . . . . . . . . . . . . Time . | . . . . . . . . . . . . . . . . . . . Total Robot Build Rating . | . . . . . . . . . . . . . . . . . . . Part Schematics Acquired 8 | . . . . . . . 8 . . . . . . . . . . . Parts Built 4 | . . . . . . . . 2 . . . . . 2 . . . . Authchips . | . . . . . . . . . . . . . . . . . . . Time 181 | . . . . . . . . 64 . . . . . 117 . . . . Total Part Build Rating 30 | . . . . . . . . 16 . . . . . 14 . . . . Parts Repaired . | . . . . . . . . . . . . . . . . . . . Time . | . . . . . . . . . . . . . . . . . . . Parts Recycled . | . . . . . . . . . . . . . . . . . . . Recycled Matter . | . . . . . . . . . . . . . . . . . . . Retrieved Matter . | . . . . . . . . . . . . . . . . . . . Retrieved Components 3 | . . . . 3 . . . . . . . . . . . . . . Parts Scanalyzed . | . . . . . . . . . . . . . . . . . . . Part Schematics Acquired . | . . . . . . . . . . . . . . . . . . . Parts Damaged . | . . . . . . . . . . . . . . . . . . . Bothacking | -11 -10 -10 -9 -7 -7 -7 -7 -6 -6 -6 -5 -5 -5 -4 -4 -4 -3 -2 ------------ Run | Yrd Mat Sub Rec Fac Low Low Dat Pro Fac Ext Fac Upp Upp Fac Upp Upp Res Res Used RIF Installer . | . . . . . . . . . . . . . . . . . . . Robots Hacked . | . . . . . . . . . . . . . . . . . . . Non-combat . | . . . . . . . . . . . . . . . . . . . Combat . | . . . . . . . . . . . . . . . . . . . Robot Hacks Applied . | . . . . . . . . . . . . . . . . . . . Relay Couplers Released 3 | . . . . . . . . . . . 3 . . . . . . . Programmers 3 | . . . . . . . . . . . 3 . . . . . . . Fabnet Peak Effective % . | . . . . . . . . . . . . . . . . . . . Robots Rewired 24 | . . . . . . . . 11 . 13 . . . . . . . . Allies Hacked . | . . . . . . . . . . . . . . . . . . . Hacks Repelled . | . . . . . . . . . . . . . . . . . . . Allies | -11 -10 -10 -9 -7 -7 -7 -7 -6 -6 -6 -5 -5 -5 -4 -4 -4 -3 -2 -------- Run | Yrd Mat Sub Rec Fac Low Low Dat Pro Fac Ext Fac Upp Upp Fac Upp Upp Res Res Total Allies 30 | . . . . . . . . 11 . 19 . . . . . . . . Largest Group 6 | . . . . . . . . 6 4 6 6 . . . . . . . Highest-Rated Group 249 | . . . . . . . . 210 137 249 188 . . . . . . . Highest-Rated Ally 159 | . . . . . . . . 41 41 159 39 . . . . . . . Total Orders . | . . . . . . . . . . . . . . . . . . . Ally Attacks 234 | . . . . . . . . 38 30 142 24 . . . . . . . Total Damage 4732 | . . . . . . . . 518 868 2805 541 . . . . . . . Kills 30 | . . . . . . . . 2 6 20 2 . . . . . . . Allies Corrupted . | . . . . . . . . . . . . . . . . . . . Allies Melted 1 | . . . . . . . . . . 1 . . . . . . . . Intel | -11 -10 -10 -9 -7 -7 -7 -7 -6 -6 -6 -5 -5 -5 -4 -4 -4 -3 -2 ------- Run | Yrd Mat Sub Rec Fac Low Low Dat Pro Fac Ext Fac Upp Upp Fac Upp Upp Res Res Robot Analysis Total . | . . . . . . . . . . . . . . . . . . . Derelict Logs Recovered 4 | . . . . . 1 1 . . . . . 1 . . 1 . . . Drone Launches . | . . . . . . . . . . . . . . . . . . . Drone Recoveries . | . . . . . . . . . . . . . . . . . . . Exploration | -11 -10 -10 -9 -7 -7 -7 -7 -6 -6 -6 -5 -5 -5 -4 -4 -4 -3 -2 ------------- Run | Yrd Mat Sub Rec Fac Low Low Dat Pro Fac Ext Fac Upp Upp Fac Upp Upp Res Res Turns Passed 15680 | 111 867 793 1260 3072 630 536 115 1620 1511 1233 2154 368 15 578 172 66 275 304 Spaces Moved 9888 | 70 583 431 799 1865 423 343 80 563 692 640 1050 214 15 474 459 128 583 476 Core 258 | 2 . . 15 . . . . 8 . . . 19 15 49 . . . 150 Treads 3636 | 1 95 357 440 1568 146 343 80 458 148 . . . . . . . . . Legs 1412 | . . . 57 . . . . 72 28 640 613 . . . . . . 2 Wheels 2440 | 67 488 74 287 105 . . . . 464 . 398 195 . 362 . . . . Hover 127 | . . . . 36 . . . . 52 . 39 . . . . . . . Flight 2015 | . . . . 156 277 . . 25 . . . . . 63 459 128 583 324 Fastest Speed 27 | 50 100 150 120 66 66 145 145 145 125 126 95 100 100 32 35 32 27 33 Average Speed 127 | 99 109 158 147 143 131 145 145 202 167 152 148 152 100 98 35 34 32 40 Slowest Speed 550 | 160 160 160 200 203 255 145 145 550 294 222 483 550 100 185 35 35 115 350 Overloaded Moves . | . . . . . . . . . . . . . . . . . . . Propulsion Burnouts . | . . . . . . . . . . . . . . . . . . . Robots Hopped 23 | . . . . 1 . . . . . . . . . . 2 2 14 4 Cave-ins Triggered . | . . . . . . . . . . . . . . . . . . . Exploration Rate (%) 41 | 3 92 21 96 50 69 46 68 44 15 72 21 45 7 15 67 18 22 14 Regions Visited 18 Branch Regions 11 Pre-discovered Areas 1 | . . . . . . . 1 . . . . . . . . . . . Known Exits Taken 4 | . . . . . . . . . 1 . . . . . 1 1 1 . Unknown Exits Taken 14 | 1 1 1 1 1 1 1 1 1 . 1 1 1 1 1 . . . . Scrap Searched 10 | . . 2 . . 4 . . 1 . . . . . . 3 . . . Spaces Dug 65 | . 5 . . 9 30 5 . . . . 14 . . 1 . . . 1 Terrain Destroyed 536 | . 76 2 . 86 65 6 . 6 34 5 98 34 . 42 35 15 24 8 Melee 20 | . . . . 6 . 5 . . . . 8 . . 1 . . . . Projectile 114 | . 11 2 . 22 3 1 . 6 31 5 23 2 . . . . . 8 AOE 402 | . 65 . . 58 62 . . . 3 . 67 32 . 41 35 15 24 . Terrain Rammed . | . . . . . . . . . . . . . . . . . . . Walls Destroyed . | . . . . . . . . . . . . . . . . . . . Machines Disabled . | . . . . . . . . . . . . . . . . . . . Actions | -11 -10 -10 -9 -7 -7 -7 -7 -6 -6 -6 -5 -5 -5 -4 -4 -4 -3 -2 --------- Run | Yrd Mat Sub Rec Fac Low Low Dat Pro Fac Ext Fac Upp Upp Fac Upp Upp Res Res Total 11967 | 95 705 499 865 2133 471 363 79 931 932 838 1465 246 15 544 465 144 641 536 Wait 872 | . 45 12 6 86 11 1 . 228 109 99 196 7 . 21 1 9 38 3 Move 9828 | 69 582 430 798 1862 422 342 79 562 691 639 1049 213 14 473 454 123 558 468 Hop 19 | . . . . 1 . . . . . . . . . . 2 2 10 4 Pick Up 146 | 9 7 18 17 28 3 1 . 8 11 6 22 6 . 3 . . 3 4 Fast Attach 92 | 6 4 4 . 6 . 3 . 7 3 1 18 4 . 14 1 2 15 4 Attach 78 | 1 . 2 10 10 . . . 5 6 2 23 3 . 1 3 3 2 7 Detach 41 | . . . 1 7 . . . 4 4 . 10 . . . 2 3 4 6 Swap 105 | . 8 3 2 17 9 3 . 11 11 20 17 1 . 3 . . . . Drop 130 | 1 9 7 15 24 3 2 . 11 14 9 17 3 1 7 . . 4 3 Fire 537 | 9 47 21 14 77 23 6 . 74 67 34 97 9 . 18 2 2 7 30 Melee 63 | . . . . 7 . 5 . 21 . 15 11 . . 4 . . . . Ram 3 | . . . 1 . . . . . . . . . . . . . . 2 Kick 7 | . . . . . . . . . . 1 5 . . . . . . 1 Crush 12 | . 3 . 1 8 . . . . . . . . . . . . . . Escape Stasis 31 | . . . . . . . . . 16 11 . . . . . . . 4 Rewire 1 | . . . . . . . . . . 1 . . . . . . . . Trap . | . . . . . . . . . . . . . . . . . . . Miscellaneous 2 | . . 2 . . . . . . . . . . . . . . . . Route ------- -11/Scrapyard -10/Materials (discovered 6 exits: [*Mat x3] / [*Min x2] / [*Sub]) -10/Subcaves -9/Recycling -7/Factory (discovered 2 exits: [*Fac] / [*Low]) -7/Lower Caves -7/Lower Caves (discovered 2 exits: [*Fac] / *Dat) -7/Data Miner -6/Proximity Caves -6/Factory (discovered 4 exits: *Fac / [*Low] / *Ext x2) -6/Extension (discovered 3 exits: *Fac x2 / [*Cet]) -5/Factory -5/Upper Caves -5/Upper Caves -4/Factory -4/Upper Caves -4/Upper Caves -3/Research -2/Research History --------- Turn | Location | Event 34 | -11/Scrapyard | Discovered new exit (range 14) 112 | -11/Scrapyard | Entered Materials 145 | -10/Materials | Discovered new exit (range 7) 316 | -10/Materials | Build established: Mutant 404 | -10/Materials | Discovered new exit (range 5) 604 | -10/Materials | Discovered new exit (range 9) 802 | -10/Materials | Discovered new exit (range 15) 885 | -10/Materials | Discovered new exit (range 8) 956 | -10/Materials | Discovered new exit (range 2) 979 | -10/Materials | Entered Subcaves 1025 | -10/Subcaves | A swath of the cavern ceiling suddenly collapsed 1088 | -10/Subcaves | Shifting Twisted Machinery released Sub. Laser 1106 | -10/Subcaves | Shifting Twisted Machinery released Flamer 1577 | -10/Subcaves | Core integrity fell below 50% 1626 | -10/Subcaves | Discovered new exit (range 10) 1772 | -10/Subcaves | Entered Recycling 1773 | -9/Recycling | Met a Zionite searching for Scraptown 2063 | -9/Recycling | Discovered new exit (range 14) 2199 | -9/Recycling | Scanned before Scraplab entrance 2224 | -9/Recycling | Angered Scraplab inhabitants 2226 | -9/Recycling | Found Prototype Device 2251 | -9/Recycling | Core integrity fell below 20% 2266 | -9/Recycling | Identified Scrap Engine 2292 | -9/Recycling | Lost 6 parts (1n1u4w) 2633 | -9/Recycling | Build established: Construct 3032 | -9/Recycling | Entered Factory 3032 | -7/Factory | Evolved 6 slots: Power x1, Propulsion x2, Utility x2, Weapon x1 3335 | -7/Factory | Build established: Mutant 4228 | -7/Factory | Build established: Construct 4911 | -7/Factory | Discovered new exit (range 7) 5898 | -7/Factory | Discovered new exit (range 16) 6104 | -7/Factory | Entered Lower Caves 6323 | -7/Lower Caves | Destroyed 8 combat bots 6509 | -7/Lower Caves | Encountered a Warlord checkpoint 6536 | -7/Lower Caves | Discovered new exit (range 14) 6732 | -7/Lower Caves | Attracted the attention of an 0b10 checkpoint 6734 | -7/Lower Caves | Entered another Lower Caves area 6777 | -7/Lower Caves | Discovered new exit (range 13) 7127 | -7/Lower Caves | Learned location of 1 exit from Factory 7150 | -7/Lower Caves | Discovered new exit (range 5) 7215 | -7/Lower Caves | Found Alien Artifact 7215 | -7/Lower Caves | Identified Core Expander 7215 | -7/Lower Caves | Installed Core Expander, added new Propulsion slot 7270 | -7/Lower Caves | Entered Data Miner 7270 | -7/Data Miner | Discovered new exit (range 7) 7298 | -7/Data Miner | Met Data Miner 7334 | -7/Data Miner | Learned location of Section 7 (-3) 7334 | -7/Data Miner | Acquired the access code to Warlord's prototype stash 7347 | -7/Data Miner | Received God Mode back door access code from Data Miner 7385 | -7/Data Miner | Entered Proximity Caves 7409 | -6/Proximity Caves | Attracted the attention of an 0b10 checkpoint 7675 | -6/Proximity Caves | Snuck into a huge 0b10 base via the rear entrance 7913 | -6/Proximity Caves | Lost 5 allies 8174 | -6/Proximity Caves | Fabricated Imp. Remote Force Field (x2) 8235 | -6/Proximity Caves | Discovered new exit (range 16) 8279 | -6/Proximity Caves | Core integrity fell below 50% 8289 | -6/Proximity Caves | Destroyed 7 combat bots 8334 | -6/Proximity Caves | Lost 9 parts (2p5n1u1w) 9005 | -6/Proximity Caves | Entered Factory 9005 | -6/Factory | Accompanied by 4 allies 9005 | -6/Factory | Evolved 2 slots: Utility x1, Weapon x1 9006 | -6/Factory | Identified exit to Extension 9090 | -6/Factory | Discovered new exit (range 11) 9136 | -6/Factory | Build established: Scavenger-Tank 9388 | -6/Factory | Lost 4 allies 9997 | -6/Factory | Discovered new exit (range 15) 10281 | -6/Factory | Cargo convoy interrupted 10302 | -6/Factory | Incoming assault squad redirected 10334 | -6/Factory | Discovered exit to Extension (range 9) 10516 | -6/Factory | Entered Extension 10580 | -6/Extension | Rescued a captive Derelict 10581 | -6/Extension | Rescued a captive Derelict 10711 | -6/Extension | Rescued a captive Derelict 10834 | -6/Extension | Energy Cycler disabled 10834 | -6/Extension | Rescued a captive Derelict 10834 | -6/Extension | Rescued a captive Derelict 10834 | -6/Extension | Rescued a captive Derelict 10834 | -6/Extension | Rescued a captive Derelict 10834 | -6/Extension | Rescued a captive Derelict 10834 | -6/Extension | Rescued a captive Derelict 10836 | -6/Extension | Rescued a captive Derelict 10837 | -6/Extension | Rescued a captive Derelict 10837 | -6/Extension | Rescued a captive Derelict 10837 | -6/Extension | Rescued a captive Derelict 10839 | -6/Extension | Rescued a captive Derelict 10841 | -6/Extension | Rescued a captive Derelict 10844 | -6/Extension | Rescued a captive Derelict 10848 | -6/Extension | Rescued a captive Derelict 10866 | -6/Extension | First assault squad dispatched 10926 | -6/Extension | Spotted B-75 Beast 10934 | -6/Extension | Rescued A7 10946 | -6/Extension | Destroyed B-75 Beast 11076 | -6/Extension | Spotted B-75 Beast 11094 | -6/Extension | Allies destroyed B-75 Beast 11101 | -6/Extension | Discovered new exit (range 15) 11113 | -6/Extension | Extracted ID and sensor layout for unrecognized location from A7's data core 11288 | -6/Extension | Build established: Construct 11605 | -6/Extension | Discovered new exit (range 10) 11607 | -6/Extension | Discovered new exit (range 6) 11749 | -6/Extension | Entered Factory 11749 | -5/Factory | Accompanied by 6 allies 11749 | -5/Factory | Evolved 2 slots: Utility x1, Weapon x1 12035 | -5/Factory | Build established: Commander-Tank 12363 | -5/Factory | Found Prototype Launcher 12363 | -5/Factory | Identified Mni. Smartbomb Launcher 12366 | -5/Factory | Found Mni. Smartbomb Launcher 12381 | -5/Factory | Found Mni. Smartbomb Launcher 12429 | -5/Factory | Build established: Tank 12830 | -5/Factory | Cargo convoy interrupted 12848 | -5/Factory | System corruption reached 10% 12879 | -5/Factory | Destroyed 17 combat bots 12887 | -5/Factory | Lost 14 parts (3p4n3u4w) 13237 | -5/Factory | Build established: Scavenger-Skirmisher 13549 | -5/Factory | First assault squad dispatched 13576 | -5/Factory | Incoming assault squad redirected 13641 | -5/Factory | Core integrity fell below 50% 13663 | -5/Factory | Lost 5 parts (2n1u2w) 13838 | -5/Factory | Discovered new exit (range 11) 13903 | -5/Factory | Entered Upper Caves 13904 | -5/Upper Caves | Core integrity fell below 20% 13916 | -5/Upper Caves | Lost 9 parts (2p5n2w) 13972 | -5/Upper Caves | Learned Factory emergency access door positions 14156 | -5/Upper Caves | Build established: Skirmisher 14185 | -5/Upper Caves | Discovered new exit (range 9) 14207 | -5/Upper Caves | Lost 4 parts (1n1u2w) 14271 | -5/Upper Caves | Entered another Upper Caves area 14278 | -5/Upper Caves | Discovered new exit (range 7) 14286 | -5/Upper Caves | Entered Factory 14286 | -4/Factory | Evolved 2 slots: Propulsion x1, Weapon x1 14475 | -4/Factory | Fabricated Antimatter Reactor? 14811 | -4/Factory | Garrison activated, responded to threat 14838 | -4/Factory | Core integrity fell below 50% 14856 | -4/Factory | Discovered new exit (range 5) 14864 | -4/Factory | Entered Upper Caves 14875 | -4/Upper Caves | Lost 17 parts (3p5n3u6w) 14881 | -4/Upper Caves | Learned 4 Research zone layouts 15032 | -4/Upper Caves | Discovered new exit (range 11) 15036 | -4/Upper Caves | Identified exit to Upper Caves 15036 | -4/Upper Caves | Entered another Upper Caves area 15080 | -4/Upper Caves | Discovered new exit (range 21) 15100 | -4/Upper Caves | Identified exit to Research 15102 | -4/Upper Caves | Entered Research 15102 | -3/Research | Evolved 2 slots: Power x1, Propulsion x1 15103 | -3/Research | Identified exit to Research 15119 | -3/Research | Identified exit to DSF 15147 | -3/Research | Garrison activated, responded to threat 15165 | -3/Research | Spotted B-86 Titan 15212 | -3/Research | Lost 5 parts (1p2n2u) 15318 | -3/Research | Found Mni. Smartbomb Launcher 15377 | -3/Research | Entered another Research area 15377 | -2/Research | Evolved 2 slots: Weapon x2 15408 | -2/Research | Lost 3 parts (1p1n1w) 15415 | -2/Research | Garrison activated, responded to threat 15592 | -2/Research | Core integrity fell below 50% 15610 | -2/Research | Core integrity fell below 20% 15623 | -2/Research | Lost 14 parts (1p7n2u4w) 15681 | -2/Research | Destroyed by H-88 Terminator with KE Penetrator Last Messages --------------- 15610_ R-10 Processor collects Adv. Heat Sink. 15611_ R-10 Processor collects Sml. Battery. 15611_ R-10 Processor collects Gamma Rifle. 15613_ Penetrated by Slug. 15613_ U-05 Engineer builds a Wall. 15613_ R-10 Processor collects Sml. Battery. 15614_ K-01 Serf collects debris. 15614_ R-10 Processor collects Mic. Antimatter Reactor. 15626_ Slammed into K-01 Serf. 15626_ K-01 Serf collects debris. 15627_ ALERT: Rogue bot located, Programmers report to Research Zone 7Y. 15629_ K-01 Serf collects debris. 15638_ System corrupted: Heat flow error (+175). 15659_ Acquired Centrium Leg. 15666_ Dropped Matter Compressor. 15666_ Acquired Imp. Hacking Suite. 15673_ Slug penetrates Wall. 15680_ Penetrated by Slug. 15681_ Slammed into H-88 Terminator. 15681_ Penetrated by Slug. Map ----- +----------------------------------------------------+ | ??????????????????????????????????????????????? | | ????????????????????? ??????????????????????? | | ????????????????????? ??????????????????????? | | ???????????????????? ?????????????????????? | | ???????????????????? p#?????????????????????? | | ????????????????????" #?????????????????????? | | ??????????????? ????" /?????????????????????? | | ??????????????# ?? G #?????????????????????? | | ?????????????## ??"" #?????????????????????? | | ?????????????# ? " ! #?????????????????????? | | ?????????????# ? p#?????????????????????? | | ?????????????# ? gg#?????????????????????? | | ?????????????# ^ #?????????????????????? | | ?????????????# """ gb###???????????????????? | | ?????????????# """g #???????????????????? | | ?????????????# """ g #???????????????????? | | ?????????????# """ g #???????????????????? | | ?????????????# """ ] #???????????????????? | | ??????????????# g #???????????????????? | | ??????????????# #???????????????????? | | ???????????????? ????########?????????? | | ???????????????#### ####### #?????????? | | ???????????????# # # ########### | | ???????????????# + # + | | ???????????????# ###h# # # | | ??????????????###+####@# # # | | ??????????????# ##h# # + | | ??????????????# ! ##h# ###+#### ######## | | ??????????????# = ## # #?# #??# #??????# | | ??????????????# == ## #######?# #??# #??????# | | ??????????????########h######### #### #??????# | | ??????????????# # #??????# | | ??????????????# #??????# | | ??????????????# # #??????# | | ??????????????# # #??????# | | ??????????????# # ######## | | ??????????????# # # # | | ??????????????# !! # + # | | ??????????????# !! # ##### # | | ??????????????# ! # #???# # | | ??????????????# # #???# # | | ??????????????# # #???#"" !# | | ??????????????# # #???#"" # | | ??????????????######+####### #???#"" # | | ?????????????????# #???#S # | | ?????????????????# #???#"" + | | ?????????????????# ########### #???#"" # | | ?????????????????# #??????####+#####"" # | | ?????????######??# #??????# # # | | ?????????# ??# #??????# # # | +----------------------------------------------------+ Best States ------------- Heat Dissipation 98 Coolant Potential 50 Energy Generation 37 Energy Capacity 550 Matter Stores 300 Matter Capacity 550 Sight Range 22 Robot Scan Range 16 Terrain Scan Density 10 Additional Mass Support 9 Corruption Block 8 Armor Coverage 800 Weapon Shielding 90 Evasion (%) 64 Recoil Reduction 5 Offensive Hacking 14 Defensive Hacking 10 Authchip Count 1 Item Schematics ----------------- Combat Drone Bay | -7/Data Miner | Free Lgt. Regenerative Plating | -7/Data Miner | Free Cld. Cesium-ion Thruster | -7/Data Miner | Free Exp. Power Shielding | -7/Data Miner | Free Imp. Heavy Laser | -7/Data Miner | Free Gyrokinetic Inverter | -7/Data Miner | Free Adv. Field Recycling Unit | -7/Data Miner | Free Smartbomb Launcher | -7/Data Miner | Free Robot Schematics ------------------ L-41 Fighter | -7/Data Miner | Free R-10 Processor | -7/Data Miner | Free S-27 Virus | -7/Data Miner | Free G-50 Soldier | -7/Data Miner | Free Fabricated ------------ Imp. Remote Force Field | x2 | -6/Proximity Caves | Preloaded Antimatter Reactor | x2 | -4/Factory | Preloaded Alien Tech Used ----------------- Core Expander Achievements -------------- Executioner Challenges ------------ None Game ------ Seed RainbowWeaponsPurifier Manual? 0 Play Time 02:43:33 Cumulative 294.9 hours Start 2025.03.03 @ 21:46:15 End 2025.03.04 @ 18:06:54 Sessions 3 Manual Loads 0 Difficulty Rogue Special Mode None Game No. 101 Rogue 100 Adventurer 1 Explorer 0 Win Type - Total 9 Types 8/0/1/0/0/0/0/0/0 Lore% 71 Gallery% 79 Achievement% 65 Wizard Run 0 Options --------- Layout 0 ASCII 1 Keyboard 1 Movement Vi Keybinds 0 Fullscreen 2 Font 36/Terminus++ Map View 76x50 Zoom Use 0% Tactical HUD 1 Map Filters NONE Filters NONE Steam 0 RUN: bdadee58-6f58-41ff-9ace-3dc58df003b2